Cogmind - Beta 10.2 @@@ ROGUE MODE // 2020.12.27 @ 02:46:23 Player: Wakanaka Result: Destroyed by G-47 Trooper with Particle Gun Performance ------------- Evolutions (3) 1500 Regions Visited (4) 800 Robots Destroyed (71) 355 Value Destroyed (2176) 2176 Prototype IDs (2) 40 Alien Tech Used (0) 0 Bonus (0) 0 TOTAL SCORE: 4871 Bonus ------- None Cogmind --------- Core Integrity 0/700 Matter 300/300 Energy 100/100 System Corruption 0% Temperature Cool (9) Movement Core (350) Ox6 Location -7/Factory Parts ------- > --- POWER (2) -------- (None) > --- PROPULSION (4) --- (None) > --- UTILITY (5) ------ Large Storage Unit Advanced Targeting Computer Melee Analysis Suite Improved Light Armor Plating > --- WEAPON (2) ------- Scythe > --- INVENTORY (10) --- Improved Cooling System Small Storage Unit Large Battery (134) Structural Scanner Terrain Scanner System Backup Module Recalibrator Heavy Ion Cannon Autogun Peak State ------------ > --- POWER ------------ Light Deuterium Engine Light Deuterium Engine > --- PROPULSION ------- Carbon-fiber Leg Carbon-fiber Leg Improved Carbon-fiber Leg Improved Carbon-fiber Leg > --- UTILITY ---------- Improved Cooling System Large Storage Unit Advanced Targeting Computer Hardened Medium Armor Plating Improved Shield Generator > --- WEAPON ----------- Gatling Laser Cooled Particle Cannon > --- INVENTORY -------- Small Storage Unit Large Battery Structural Scanner Terrain Scanner Melee Analysis Suite Improved Light Armor Plating System Backup Module Recalibrator Autogun Scythe [Rating: 46] Favorites ----------- Power Light Nuclear Core Engine Light Deuterium Engine Power Core Light Nuclear Core Propulsion Improved Carbon-fiber Leg Treads Medium Treads Leg Improved Carbon-fiber Leg Wheel Wheel Flight Unit VTOL Module Utility Hardened Medium Armor Plating Device Microactuators Storage Large Storage Unit Processor Improved Targeting Computer Hackware Hacking Suite Protection Hardened Medium Armor Plating Weapon Heavy Ion Cannon Energy Gun Arc Projector Energy Cannon Heavy Ion Cannon Ballistic Gun Gauss Rifle Ballistic Cannon Light Cannon Launcher Grenade Launcher Slashing Weapon Scythe Build | -11 -10 -9 -8 -7 ------- Run | Scr Mat Mat Mat Fac Slots Evolved 6 | . . 2 2 2 Power 1 | . . . . 1 Propulsion 2 | . . . 2 . Utility 3 | . . 2 . 1 Weapon . | . . . . . Parts Attached 109 | 6 12 10 19 62 Power 19 | 1 2 2 2 12 Engine 13 | 1 2 2 1 7 Core 6 | . . . 1 5 Reactor . | . . . . . Propulsion 28 | 2 2 1 7 16 Treads 6 | . . . 4 2 Leg 12 | . 2 1 3 6 Wheel 7 | 2 . . . 5 Hover . | . . . . . Flight 3 | . . . . 3 Utility 34 | 1 4 3 7 19 Device 10 | . 1 . 3 6 Storage 9 | 1 2 . 1 5 Processor 3 | . . . . 3 Hackware 1 | . . 1 . . Protection 11 | . 1 2 3 5 Artifact . | . . . . . Weapon 28 | 2 4 4 3 15 Energy Gun 9 | 1 1 3 2 2 Energy Cannon 7 | . . . . 7 Ballistic Gun 8 | 1 1 . 1 5 Ballistic Cannon 1 | . 1 . . . Launcher 2 | . 1 1 . . Special Weapon . | . . . . . Impact Weapon . | . . . . . Slashing Weapon 1 | . . . . 1 Piercing Weapon . | . . . . . Special Melee Weapon . | . . . . . Unidentified Prototypes 2 | . . . . 2 Parts Lost 43 | . 4 9 11 19 Power 9 | . . 2 2 5 Propulsion 10 | . 2 1 3 4 Utility 11 | . . 1 3 7 Weapon 13 | . 2 5 3 3 Highest Loss Streak 6 | . 4 5 6 6 Average Slot Usage (%) 85 | . 94 91 75 84 Engine 8 | . 14 11 1 7 Core 4 | . . . 7 6 Treads 5 | . . . 28 3 Leg 12 | . 7 20 4 12 Wheel 3 | . 18 . . 1 Flight 2 | . . . . 3 Device 7 | . 8 4 10 7 Storage 9 | . 14 11 9 8 Processor 2 | . . . . 4 Hackware 1 | . . 6 9 . Protection 10 | . 1 20 4 11 Energy Gun 3 | . 3 8 . 2 Energy Cannon 5 | . . . . 8 Ballistic Gun 3 | . 10 . 1 2 Ballistic Cannon 1 | . 4 5 . . Launcher 1 | . 9 3 . . Naked Turns . | . . . . . Heaviest Build 72 | 11 26 28 37 72 Greatest Support 112 | 20 20 20 112 66 Greatest Overweight (x) 8 | . 2 1 1 8 Average Overweight (x) . | . . . . . Largest Inventory Capacity 14 | 6 14 10 10 10 Average Capacity 8 | 5 9 10 10 7 Most Carried 10 | 4 9 8 10 10 Average Carried 6 | 2 6 7 7 6 Final Capacity 10 | 6 10 10 10 10 Final Carried 9 | 4 8 7 4 9 Class Distribution -------------------- 84% | Mutant 15% | Scavenger-Mutant Dominant Class ---------------- Mutant | -10/Materials Mutant | -9/Materials Mutant | -8/Materials Mutant | -7/Factory Resources | -11 -10 -9 -8 -7 ----------- Run | Scr Mat Mat Mat Fac Matter Collected 1648 | 247 227 232 . 942 Remotely . | . . . . . Salvage Created 2584 | . 355 308 49 1872 Parts 140 | . 28 14 4 94 Haulers Intercepted 1 | . . . . 1 Recyclers Shooed 1 | . . . . 1 Parts Field Recycled . | . . . . . Retrieved Matter . | . . . . . Parts Self-Destructed . | . . . . . Prevented . | . . . . . Kills | -11 -10 -9 -8 -7 ------- Run | Scr Mat Mat Mat Fac Combat Hostiles Destroyed 54 | . 12 11 1 30 Melee 1 | . . . 1 . Guns 18 | . 8 2 . 8 Cannons 27 | . 4 3 . 20 AOE 8 | . . 6 . 2 Classes Destroyed 11 | . 5 1 . 5 Worker 1 | . . . . 1 Builder 3 | . 1 1 . 1 Hauler 1 | . . . . 1 Recycler 5 | . . 1 . 4 Operator 4 | . 1 2 . 1 Watcher 3 | . 1 . . 2 Swarmer 18 | . 6 3 . 9 Grunt 27 | . 6 8 1 12 Sentry 3 | . . . . 3 Hunter 3 | . . . . 3 Programmer 3 | . . . . 3 Best Kill Streak 6 | . 3 4 1 6 Combat Bots Only 4 | . 3 4 1 3 Max Kills in Single Turn 3 | . 1 2 1 3 Gunslinging . | . . . . . Exploded 2 | . . 2 . 1 Melee 1 | . . . 1 . Uniques/NPCs Destroyed . | . . . . . Combat | -11 -10 -9 -8 -7 -------- Run | Scr Mat Mat Mat Fac Damage Taken 6876 | . 626 1085 2077 3088 Core 1713 | . 183 349 480 701 Absorbed by Shields 325 | . . . 72 253 Core Remaining (%) 37 | 100 26 12 12 . Volleys Fired 240 | . 65 48 5 122 Largest 2 | . 2 2 1 2 Hottest 120 | . 75 80 65 120 Shots Fired 355 | . 86 67 5 197 Gun 169 | . 64 44 5 56 Cannon 179 | . 21 17 . 141 Launcher 7 | . 1 6 . . Special . | . . . . . Kinetic 134 | . 72 17 4 41 Thermal 151 | . 13 33 1 104 Explosive 7 | . 1 6 . . Electromagnetic 63 | . . 11 . 52 Robot Hit Streak 11 | . 6 11 11 10 Robot Miss Streak 7 | . 4 7 1 6 Penetration Max 1 | . . . . 1 Secondary Targets . | . . . . . Shots Hit Robots 222 | . 49 43 4 126 Core Hits 116 | . 27 21 4 64 Critical Hits 2 | . . . . 2 Critical Kills . | . . . . . Critical Parts Destroyed 2 | . . . . 2 Melee Attacks 2 | . . . . 2 Impact . | . . . . . Slashing 2 | . . . . 2 Piercing . | . . . . . Sneak Attacks . | . . . . . Combat Hostiles . | . . . . . Follow-up Attacks . | . . . . . Damage Inflicted 5366 | . 611 999 83 3673 Guns 1285 | . 341 264 70 610 Cannons 3159 | . 231 214 . 2714 Explosions 852 | . 39 521 . 292 Melee 46 | . . . . 46 Ramming 24 | . . . 13 11 Kinetic 1237 | . 454 214 52 517 Thermal 2429 | . 118 174 18 2119 Explosive 560 | . 39 521 . . Electromagnetic 1070 | . . 90 . 980 Impact . | . . . . . Slashing 46 | . . . . 46 Piercing . | . . . . . Highest Corruption 6 | . . 6 . 4 Average Corruption 3 | . . 6 . 3 Corruption Purged 6 | . . . . 6 Effects 33 | . . 9 . 24 Message Errors 11 | . . . . 11 Matter Fused 7 | . . 3 . 4 Heat Flow Errors 4 | . . 1 . 3 Energy Discharges 3 | . . . . 3 Data Loss (minor) 3 | . . 2 . 1 Targeting Errors 4 | . . 3 . 1 Weapon Failures 1 | . . . . 1 Overload Shots . | . . . . . Overflow Damage 75 | . . 6 . 69 Projectiles 36 | . . . . 36 Explosions 39 | . . 6 . 33 Melee . | . . . . . Knockbacks 3 | . 2 1 . . Impact . | . . . . . Kinetic 3 | . 2 1 . . Secondary . | . . . . . Self-Inflicted Damage 157 | . . 113 . 44 Shots 6 | . . 4 . 2 Rammed 17 | . . . 5 12 Targets Rammed 18 | . . . 6 12 Kicked . | . . . . . Crushed 1 | . . . 1 . Highest Temperature 590 | . 195 272 40 590 Average Temperature 160 | . 64 44 12 195 Received Heat Transfer 2018 | . 291 264 991 472 Effects 50 | . . . . 50 Shutdowns 14 | . . . . 14 Energy Bleed 4 | . . . . 4 Interference 10 | . . . . 10 Matter Decay 2 | . . . . 2 Short Circuit 6 | . . . . 6 Damage (minor) 3 | . . . . 3 Damage (major) 11 | . . . . 11 Siege Activations . | . . . . . Robots Corrupted . | . . . . . Combat Hostiles . | . . . . . Parts Fried 3 | . . . . 3 Impact Corruptions . | . . . . . Robots Melted . | . . . . . Combat Hostiles . | . . . . . Parts Melted 6 | . . 1 . 5 Heat Transferred 3530 | . 275 400 37 2818 Parts Sabotaged . | . . . . . Parts Stolen . | . . . . . Parts Stripped . | . . . . . Power Chain Reactions 3 | . . . . 3 Missiles Intercepted . | . . . . . Alert | -11 -10 -9 -8 -7 ------- Run | Scr Mat Mat Mat Fac Peak Influence 330 | . 330 301 41 307 Initial 76 | . . 76 33 . Average 132 | . 184 160 31 137 Maximum Alert Level 1 | . 1 1 . 1 Low Security (%) 81 | 100 65 61 100 84 Level 1 18 | . 34 38 . 15 Level 2 . | . . . . . Level 3 . | . . . . . Level 4 . | . . . . . Level 5 . | . . . . . High Security . | . . . . . Max Security . | . . . . . Squads Dispatched 23 | . 5 4 2 12 Investigation 8 | . 2 1 . 5 Extermination 3 | . . . . 3 Reinforcement 12 | . 3 3 2 4 Assault . | . . . . . Garrison . | . . . . . Intercept . | . . . . . Construction Impeded 2 | . . 1 . 1 Haulers Reinforced 1 | . . . . 1 Stealth | -11 -10 -9 -8 -7 --------- Run | Scr Mat Mat Mat Fac Distress Signals 2 | . 1 . 1 . Communications Jammed . | . . . . . Distress Signals . | . . . . . Times Spotted 108 | . 23 18 14 53 Peak Tracking Total 10 | . 7 4 10 8 Tactical Retreats 9 | . 1 3 . 5 Traps | -11 -10 -9 -8 -7 ------- Run | Scr Mat Mat Mat Fac Traps Triggered 3 | . 1 . . 2 Indirectly . | . . . . . Trap Hack Attempts . | . . . . . Triggered . | . . . . . Disarmed 18 | . . 6 . 12 Reprogrammed . | . . . . . Reused . | . . . . . Traps Extracted . | . . . . . Installed . | . . . . . Triggered . | . . . . . Machines | -11 -10 -9 -8 -7 ---------- Run | Scr Mat Mat Mat Fac Machines Disabled 5 | . . 2 . 3 Max in Single Turn 1 | . . 1 . 1 Machines Sabotaged . | . . . . . Garrisons Compromised . | . . . . . Overloaded Fab Kills . | . . . . . Fab Network Shutdowns . | . . . . . Hacking | -11 -10 -9 -8 -7 --------- Run | Scr Mat Mat Mat Fac Machines Accessed 12 | . 1 3 1 7 Terminals 11 | . 1 3 1 6 Fabricators 1 | . . . . 1 Repair Stations . | . . . . . Recycling Units . | . . . . . Scanalyzers . | . . . . . Garrison Access . | . . . . . Total Hacks 40 | . 4 11 4 21 Successful 25 | . 1 5 4 15 Failed 15 | . 3 6 . 6 Catastrophic 1 | . . 1 . . Database Lockouts . | . . . . . Manual . | . . . . . Terminals 39 | . 4 11 4 20 Fabricators 1 | . . . . 1 Repair Stations . | . . . . . Recycling Units . | . . . . . Scanalyzers . | . . . . . Garrison Access . | . . . . . Terminal Hacks 24 | . 1 5 4 14 Record 8 | . 1 . . 7 Emergency Access Points 1 | . . . 1 . Alert Level 4 | . . 2 1 1 Unreport Threat 2 | . . 1 . 1 Locate Traps 3 | . . . . 3 Disarm Traps 3 | . . 1 . 2 Maintenance Status 1 | . . . 1 . Zone Layout 2 | . . 1 1 . Fabricator Hacks 1 | . . . . 1 Network Status 1 | . . . . 1 Repair Station Hacks . | . . . . . Recycling Unit Hacks . | . . . . . Scanalyzer . | . . . . . Garrison Access Hacks . | . . . . . Unauthorized Hacks . | . . . . . Terminals . | . . . . . Fabricators . | . . . . . Repair Stations . | . . . . . Recycling Units . | . . . . . Scanalyzers . | . . . . . Garrison Access . | . . . . . Data Cores Recovered . | . . . . . Used . | . . . . . Hacking Detections 10 | . 1 2 . 7 Full Trace Events 7 | . 1 2 . 4 Feedback Events . | . . . . . Feedback Blocked . | . . . . . Robot Schematics Acquired . | . . . . . Robots Built . | . . . . . Matter . | . . . . . Time . | . . . . . Total Robot Build Rating . | . . . . . Part Schematics Acquired . | . . . . . Parts Built . | . . . . . Matter . | . . . . . Time . | . . . . . Total Part Build Rating . | . . . . . Parts Repaired . | . . . . . Time . | . . . . . Parts Recycled . | . . . . . Recycled Matter . | . . . . . Retrieved Matter . | . . . . . Retrieved Components . | . . . . . Parts Scanalyzed . | . . . . . Part Schematics Acquired . | . . . . . Parts Damaged . | . . . . . Bothacking | -11 -10 -9 -8 -7 ------------ Run | Scr Mat Mat Mat Fac Used RIF Installer . | . . . . . Robots Hacked . | . . . . . Non-combat . | . . . . . Combat . | . . . . . Robot Hacks Applied . | . . . . . Relay Couplers Released . | . . . . . Robots Rewired . | . . . . . Allies Hacked . | . . . . . Hacks Repelled . | . . . . . Allies | -11 -10 -9 -8 -7 -------- Run | Scr Mat Mat Mat Fac Total Allies . | . . . . . Largest Group . | . . . . . Highest-Rated Group . | . . . . . Highest-Rated Ally . | . . . . . Total Orders . | . . . . . Ally Attacks . | . . . . . Total Damage . | . . . . . Kills . | . . . . . Allies Corrupted . | . . . . . Allies Melted . | . . . . . Intel | -11 -10 -9 -8 -7 ------- Run | Scr Mat Mat Mat Fac Robot Analysis Total . | . . . . . Derelict Logs Recovered . | . . . . . Drone Launches . | . . . . . Drone Recoveries . | . . . . . Exploration | -11 -10 -9 -8 -7 ------------- Run | Scr Mat Mat Mat Fac Turns Passed 3995 | 66 523 492 450 2464 Spaces Moved 2152 | 64 336 236 244 1272 Core 17 | 2 . . . 15 Treads 544 | . . . 214 330 Legs 1003 | . 63 236 30 674 Wheels 417 | 62 273 . . 82 Hover . | . . . . . Flight 171 | . . . . 171 Fastest Speed 50 | 50 80 120 120 90 Average Speed 141 | 79 99 148 155 150 Slowest Speed 600 | 80 150 150 180 600 Overloaded Moves . | . . . . . Propulsion Burnouts . | . . . . . Robots Hopped . | . . . . . Cave-ins Triggered 1 | . . 1 . . Exploration Rate (%) 30 | 4 74 20 22 30 Regions Visited 4 Branch Regions . Pre-discovered Areas . | . . . . . Known Exits Taken . | . . . . . Unknown Exits Taken 4 | 1 1 1 1 . Scrap Searched . | . . . . . Spaces Dug . | . . . . . Terrain Destroyed 49 | . 1 26 . 22 Melee . | . . . . . Projectile 11 | . . . . 11 AOE 38 | . 1 26 . 11 Terrain Rammed . | . . . . . Walls Destroyed . | . . . . . Machines Disabled . | . . . . . Actions | -11 -10 -9 -8 -7 --------- Run | Scr Mat Mat Mat Fac Total 2723 | 76 451 307 307 1582 Wait 91 | 3 22 10 15 41 Move 2148 | 63 335 235 243 1272 Hop . | . . . . . Pick Up 49 | 4 11 4 11 19 Fast Attach 54 | 6 3 1 3 41 Attach 33 | . 4 6 12 11 Detach . | . . . . . Swap 22 | . 5 3 4 10 Drop 48 | . 6 . 8 34 Fire 240 | . 65 48 5 122 Melee 2 | . . . . 2 Ram 11 | . . . . 11 Kick . | . . . . . Crush 7 | . . . 6 1 Escape Stasis 18 | . . . . 18 Rewire . | . . . . . Trap . | . . . . . Miscellaneous . | . . . . . Route ------- -11/Scrapyard -10/Materials (discovered 2 exits: *Mat / [*Min]) -9/Materials -8/Materials -7/Factory History --------- Turn | Location | Event 18 | -11/Scrapyard | Discovered new exit (range 15) 67 | -11/Scrapyard | Entered Materials 148 | -10/Materials | Discovered new exit (range 7) 310 | -10/Materials | Build established: Mutant 442 | -10/Materials | Core integrity fell below 50% 478 | -10/Materials | Lost 4 parts (2n2w) 559 | -10/Materials | Discovered new exit (range 7) 590 | -10/Materials | Entered another Materials area 590 | -9/Materials | Evolved 2 slots: Utility x2 836 | -9/Materials | Crushed by falling debris 836 | -9/Materials | Core integrity fell below 50% 867 | -9/Materials | Lost 3 parts (1p2w) 1019 | -9/Materials | Core integrity fell below 20% 1056 | -9/Materials | Lost 5 parts (1p1n1u2w) 1056 | -9/Materials | Discovered new exit (range 10) 1082 | -9/Materials | Entered another Materials area 1082 | -8/Materials | Evolved 2 slots: Propulsion x2 1502 | -8/Materials | Core integrity fell below 50% 1523 | -8/Materials | Lost 6 parts (1p3n2w) 1529 | -8/Materials | Discovered new exit (range 3) 1530 | -8/Materials | Core integrity fell below 20% 1532 | -8/Materials | Entered Factory 1532 | -7/Factory | Evolved 2 slots: Power x1, Utility x1 1561 | -7/Factory | Lost 4 parts (1p2u1w) 1600 | -7/Factory | Core integrity fell below 50% 1634 | -7/Factory | Lost 5 parts (1n4u) 1896 | -7/Factory | Build established: Scavenger-Mutant 2467 | -7/Factory | Build established: Mutant 3636 | -7/Factory | Core integrity fell below 20% 3996 | -7/Factory | Destroyed by G-47 Trooper with Particle Gun Last Messages --------------- 03915_ K-01 Serf collects debris. 03923_ Acquired 10 matter. 03931_ R-06 Scavenger destroyed. 03938_ Imp. Carbon-fiber Leg destroyed. 03942_ Acquired Lgt. Ion Engine. 03943_ P-60 Hacker destroyed. 03950_ Penetrated by Slug. 03956_ Acquired 10 matter. 03978_ Imp. Shield Generator destroyed. 03979_ Slug penetrates Wall. 03980_ Carbon-fiber Leg severed. 03980_ Imp. Carbon-fiber Leg destroyed. 03983_ Lgt. Ion Engine destroyed. 03985_ Carbon-fiber Leg destroyed. 03986_ Slug penetrates Wall. 03986_ Cld. Particle Cannon destroyed. 03987_ S-27 Virus destroyed. 03990_ Slug penetrates Wall. 03990_ S-27 Virus destroyed. 03992_ Lgt. Deuterium Engine destroyed. Map ----- +----------------------------------------------------+ | ????????? ???????#]] """""" #??????????# ? | | ?????????????????# ] """""" ???????????? ? | | ?????????????????#] """""" ??????????#+##+##+# | | ?????????????????# """""" ????? ### | | ?????????????????# ? ? % | | ?????????????????# """"""? ???? """ "" | | ?????????????????# """""?????????# """ "" | | ?????????????????# """""????????????? """ "" | | ?????????????????# """"?????????????? | | ?????????????????# ????????????????? | | ????????????????? ??????????????????#### | | ?????????????????######????????????#+?????### #### | | ???????????????????????????????????? ?????? #? | | ?????????????#?????????????????????? ????? #? | | ?????????????# ?##############??????" ""??? #? | | ?????????????# ?# #?????"" ""??? #? | | ?????????????# ?# """" """ #??????" ""??? ?? | | ?????????????# ?# """" """ #??????? ? ## #?# | | ?????????????# ?# """" """ #??????? ? ## # | | ?????????????# ?# """" #???????? ? ## + ? | | ?????????????# ?# #??????###+#### #?? | | ??????????#### ## """ """" #??????# ## #?? | | ??????????# # """ """" ######## #?? | | ?? ##### # """ """" + ! != #?? | | ??? " =#[ """" ######## [%= % #?? | | ??????????# %+% s l@ #?????##=% ### ##?? | | ??????????# # | gg #########*[ ##?# #??? | | ??????????# ######/######## """ # ####+#### | | ??????##### # = #????# "T" # # | | ??????? # #????#! # # """" | | ??????? [ # #????# # # "F " | | ????? # ! #????# # # | | ???? """ """ s #????# # # | | ???? """ """ # #????#] # + | | ??"" """ """ # = #????# # # | | ???? # #????####+### # ! | | ???? """ """ + #?????# ######### | | ???" """ """ ##+#######?????# #???????? | | """ """ """ ##[#???????????# "" #??????## | | % ## #???????????# %"" ##??????# | | [ |! ## #???????????# T" #???????# | | ? ###+#######%= ## ##??????????# "" ###?????# | | ????????????#[! # ##+##+###### [ "" #?????# | | ????????????# +?????# | | ????????????# ### ## #?????# | | ????????????# ######## #?????## | | ????????????#%# # ######??????? | | ????????????#%# "" # ######??????? | | ????????????#!# T" # [ +??????? | | ????????????#!+ "" # ########+## ###########? | +----------------------------------------------------+ Best States ------------- Heat Dissipation 61 Energy Generation 29 Energy Capacity 650 Matter Stores 300 Matter Capacity 300 Sight Range 16 Robot Scan Range 10 Terrain Scan Range 14 Terrain Scan Density 10 Armor Coverage 600 Propulsion Shielding 33 Weapon Shielding 33 Melee Speed Boost 40 Evasion (%) 44 Targeting Accuracy 8 Melee Accuracy 5 Recoil Reduction 4 Offensive Hacking 10 Item Schematics ----------------- None Robot Schematics ------------------ None Fabricated ------------ Nothing Alien Tech Used ----------------- None Achievements -------------- None Challenges ------------ None Game ------ Seed AntimatterImpactSheargun Manual? 0 Play Time 01:05:29 Cumulative 10.2 hours Start 2020.12.27 @ 01:40:50 End 2020.12.27 @ 02:46:23 Sessions 1 Manual Loads 0 Difficulty Rogue Special Mode None Game No. 11 Rogue 11 Adventurer 0 Explorer 0 Win Type - Total 0 Types 0/0/0/0/0/0/0/0/0 Lore% 14 Gallery% 15 Achievement% 10 Wizard Run 0 Options --------- ASCII 0 Keyboard 0 Movement Numpad Keybinds 0 Fullscreen 1 Font 18/Terminus Map View 76x50 Tactical HUD 1 Map Filters NONE Filters NONE Steam 1 RUN: a67554d2-da3e-4c43-bec0-74b34aac82a7